Workbook

Sheet pag. 1
B1: Progetto Biomasse - schede tecniche per la raccolta dati
A6: TIPOLOGIA DI IMPIANTO | F6: BIOGAS
F8: Digestore anaerobico [1] : | I8: Impianto con n.2 digestori mesofili
F9: Denominazione impianto [2] : | I9: SOVERANO
F10: Anno di realizzazione [3] : | I10: 2010
A12: PROFILO DELL'AZIENDA AGRICOLA | F12: Nome Impresa Agricola [4] : | I12: ACETO RENATO
F13: Regime Fiscale [5]:
F14: Regime IVA [5]:
F16: Sede: Ubicazione Impianto e attività zootecnica | I16: Via: | J16: C.da Squarcio | M16: n. | N16: snc
I17: Comune | J17: Bisignano | M17: ( ) | N17: CS
F18: Recapiti : responsabile tecnico Ing. Franco Aceto | I18: tel: | J18: 337988147 | L18: sito internet: | M18: aceto-f@libero.it
F19: Superficie agricola aziendale: [6] | I19: ha 200
A22: [1] specificare la tipologia tecnologica dell'impianto. Es. Specificare se si tratta di digestori ad uno o più stadi e se termofili, mesofili o altro.
A23: [2] Indicare la denominazione dell'impianto in base alla qualifica IAFR ottenuta dal GSE.
A24: [3] Inserire l'anno di entrata in esercizio commerciale dell'impianto.
A25: [4] Inserire la denominazione dell'impresa agricola registarta presso la C.C.I.A.
A26: [5] Specificare brevemente il regime reddituale ( tassazione catastale o reddito d'impresa ) e il regime IVA ( regime IVA speciale agrario o ordinario ) derivante dall'attività connessa di impresa agricola per la produzione energetica
A27: [6] inserire il numeto totale di ettari di proprietà o in disponibilità dell'azienda agricola

Sheet pag. 2
A1: CARATTERISTICHE IMPIANTO | D1: Impianto di cogenerazione
D2: Potenza elettrica nominale [7] : | H2: kWe | I2: 249
D3: Potenza termica recuperabile [8] : | H3: kWt | I3: 268
D4: Produzione elettrica per trimestri [9]: si fa presente che da agosto 2012 è andato in funzione un ampliamento d'impianto regolarmente allacciato e qualificato dal GSE | H4: Gen-Mar | I4: kWhe | J4: 506483
H5: Apr-Giu | I5: kWhe | J5: 484648
H6: Lug-Set | I6: kWhe | J6: 529487
H7: Ott-Dic | I7: kWhe | J7: 871329
D8: Autoconsumo impianto [10] : | H8: =SUM(2279527/(J4+J5+J6+J7))*(-1)+1 -> 0.04699936913
D9: Destinazione dell'energia elettrica [11] : | H9: cessione totale al GSE, ad eccezione degli autoconsumi dell'impianto di cogenerazione e delle perdite del trasformatore
D10: Destinazione energia termica e percentuale di recupero su base annuale [12] : | H10: Parziale utilizzo nell'impianto stesso per mantere a temperatura i digestori, nonché utilizzata in uno scambiatore di calore per produrre: 1. acqua sanitaria per i lavaggi nell'impianto di mungitura e dei refrigeratori del latte; 2. negli impianti igienico-sanitari e di riscaldamento dell'ufficio e della abitazioni aziendali; 3. per la preparazione del latte alimentare per i vitellini in fase di svezzamento; 4. per il mantenimento in temperatura (durante il periodo invernale) del melasso di barbabietola, stoccato in cisterne di acciaio inox;
A12: [7] inserire la POTENZA ATTIVA NOMINALE elettrica in kWe. Il dato è indicato sulle targhe degli alternatori ( generatori ) e si ricava moltiplicando la POTENZA APPARENTE NOMINALE espressa in KVA per il FATTORE DI POTENZA COS φ , indicato in targa.
A13: [8] Inserire la POTENZA TERMICA EFFICIENTE NETTA in kW indicata dalla casa costruttrice
A14: [9] Scrivere la produzione per ogni trimestre dell'anno solare precedente
A15: [10] inserire la % di autoconsumo di energia elettrica dei servizi ausiliari d'impianto nei casi in cui questi sono alimentati dall'impianto stesso, incluse le perdite di trasformazione e di linea.
A16: [11] Specificare brevemente la destinazione della produzione di energia elettrica. Es. parziale autoconsumo aziendale per l'alimentazione dei carichi elettrici dell'impianto; parziale autoconsumo aziendale per l'alimentazione dei carichi elettrici dei processi produttivi aziendali; parziale vendita al GSE con meccanismo del RID; cessione totale con meccanismo della T.O.; ec...
A17: [12] Specificare brevemente l'utilizzo di energia termica e se destinata ad edifici indicare i mc riscaldati

Sheet pag. 3
A1: CARATTERISTICHE DELLA FILIERA | D1: Materia prima utilizzata [13]
D2: Tipologia Aziendale | I2: Extra aziendale | J2: tot biomassa | K2: Resa biogas | L2: CH4
D3: Colture Dedicate | F3: ha | G3: t tal quale | H3: resa t/ha | I3: t tal quale | K3: Nm3/t tal quale | L3: %
D4: Insilato di mais | F4: 10 | G4: 750 | H4: =G4/F4 -> 75 | J4: =I4+G4 -> 750 | K4: 200 | L4: 54
D5: Insilato di triticale | F5: 10 | G5: 350 | H5: =G5/F5 -> 35 | J5: =I5+G5 -> 350 | K5: 170 | L5: 53
H6: =G6/F6 ->  | J6: =I6+G6 -> 0
H7: =G7/F7 ->  | J7: =I7+G7 -> 0
D8: Effluenti Zootecnici | F8: n. capi [14] | G8: t tal quale | H8: resa t/n | I8: t tal quale | K8: Nm3/t tal quale | L8: %
D9: bovini | F9: 1400 | G9: =SUM(70*365) -> 25550 | J9: =I9+G9 -> 25550 | K9: 30 | L9: 60
D10: suini | J10: =I10+G10 -> 0
D11: avicoli | J11: =I11+G11 -> 0
D12: altro (specificare) | J12: =I12+G12 -> 0
D13: Sottoprodotti | G13: t tal quale | I13: t tal quale | K13: Nm3/t tal quale | L13: %
J14: =I14+G14 -> 0
J15: 0
J16: 0
J17: 0
J18: 0
J19: 0
A21: [13] La resa e la biomassa totale vengono calcolati automaticamente dal foglio di calcolo
A22: [14] Consistenza media annua di capi

Sheet pag. 4
A1: CARATTERISTICHE COSTRUTTIVE DELL'IMPIANTO | E1: Descrizione
E2: Sistema di stoccaggio
E4: Sistema di alimentazione dell'impianto [15]:
E6: Sistema di pretrattamento ingestato [16]:
E7: Caratteristiche dei digestori [17]: sono presenti 2 digestori: un primario a cui è collegato il ghiottone di alimentazione ed uno secondario da dove viene scaricato il digestato. All'interno di entrambi i digestori viene mantenuta una temperatura di 40°C. Le pale di miscelazione sono azionate da motore esterno e creano una miscelazione sia in verticale che lungo il perimetro circolare delle vasche (sitama ROTA GUIDO).
E8: Dimensionamento delle vasche [18]: vasca in cemento armato dimensioni 50 metri x 15 metri x 6 metri di altezza per una capienza di 4.500 mc.
E9: Sistema di desolforazione del biogas
E10: Sistema di produzione di energia elettrica [19]:
E12: Sistema di produzione di energia termica e/o recupero di calore dall'impianto di cogenerazione [20]: l'intero sistema è dotato da un collettore principale dove viene convogliata l'acqua calda di scambio con i cogeneratori. Da questo abbiamo le partenze per le scambio con i digestori e con uno scambiatore generale aziendale utilizzato per i servizi descritti alla pag.2
E13: Rete di teleriscaldamento/raffrescamento [21]:
E14: Dimensionamento delle vasche di lagunaggio e tempo di permanenza:
E15: Sistemi innovativi per l'ottimizzazione dell'uso del digestato [22]: sono in corso delle prove con laboratorio accreditato "CONSUL CHIMICA SRL" per verificare la fattibilità di ricavare del pellet per stufe con la parte solida del digestato. Ad emerge che il prodotto se si riesce ad essiccare ha un ottimo potere calorifico; un problema da risolvere è l'aspetto legislativo che norma il suo utilizzo a tale scopo e residuo di odori ancora presenti nel prodotto.
A16: [15] Per continuo si intende a coclee e per discontinuo si intende mediante macchine agricole
A17: [16] Se si specificarne la tipologia
A18: [17]Specificare le dimensioni dei digestori, se mono o pluri-stadio, a che temperatura lavorano i batteri, che tipo di pale per la movimentazione dell'ingestato sono impiegate, in che numero e il tempo di ritenzione dell'ingestato.
A19: [18]Specificare le misure delle vasche di stoccaggio della parte liquida del digestato.
A20: [19]Specificare tipologia di motori.
A21: [20] Breve descrizione del numero e tipologia degli scambiatori di calore
A22: [21]Specificare i destinatari dell'intervento e la lunghezza della rete.
A23: [22]Descrive se sono in funzione innovazioni tecnologiche non ordinarie per la gestione dl digestato

Sheet pag. 5
A1: CARATTERISTICHE DI GESTIONE | D1: Descrizione
D2: Gestione del fondo | H2: ha | I2: ha in zona vulnerabile (-170 kg N/ha)
D3: superficie a colture dedicate di proprietà | H3: 10 | K3: ha
D4: superficie a colture dedicate in affitto | K4: ha
D5: tot superficie di proprietà o in conduzione | H5: =H4+H3 -> 10 | I5: =I4+I3 -> 0 | K5: tot ha
D6: Gestione allevamento [23] | H6: n. capi
D7: bovini | H7: ='pag. 3'!F9 -> 1400
D8: suini | H8: ='pag. 3'!F10 -> 0
D9: avicoli | H9: ='pag. 3'!F11 -> 0
D10: altro (specificare) | H10: ='pag. 3'!F12 -> 0
D11: Gestione impianto
D12: Costo servizio manutenzione | H12: =SUM(5000*12) -> 60000 | J12: €/anno
D13: Numero di fermi ordinari: cambio olio, carboni attivi, candele, ecc.. | H13: n. 36 | J13: totale ore/anno | K13: h. 72
D14: Numero di fermi straordinari: riparazioni, black-out Enel, ecc.. | H14: n. | J14: totale ore/anno | K14: h. 650
D15: Trattamento digestato per l'abbattimento dei nitrati
E17: tipologia | H17: % riduzione Azoto
E18: meccanica | K18: %
E19: chimico-fisica | K19: %
E20: biologica | K20: %
D22: Gestione del digestato
D23: Descrizione sistema di gestione del digestato [24]:
D24: tot digestato prodotto | H24: =SUM((70+2+1)*365) -> 26645 | I24: t/anno
D25: reimpiego aziendale | H25: =H24 -> 26645 | I25: t/anno
D26: parte liquida | H26: =H25*0.65 -> 17319.25 | I26: t/anno
D27: parte solida | H27: =H25-H26 -> 9325.75 | I27: t/anno
D28: conferimento esterno | I28: t/anno
D29: % Energia autoconsumata
D30: autoconsumi esercizio impianto [10] | H30: ='pag. 2'!H8:K8 -> 0.04699936913
D31: autoconsumi aziendali | H31: 0
D32: energia termica per digestore | H32: 0.12
D33: energia termica per usi aziendali | H33: 0.26
A34: [23] Il numero di capi viene preso automaticamente dal campo numerato 14 (pag. 3)
A35: [24] Descrivere se e in che maniera viene separata la parte solida da quella liquida e la loro destinazione.

Sheet pag. 6
A2: ANALISI COSTI BENEFICI | D2: Descrizione
D3: Costo dell'impianto | J3: =SUM(1170000) -> 1170000 | K3: Tot. €/anno
D4: Costi di esercizio [25] | K4: €/anno
D5: manutenzioni ordinarie e consumi: olio, carboni, gasolio, ecc.. | J5: =SUM(5500*12) -> 66000 | K5: €/anno
D6: manutenzioni straordinarie: riparazioni | J6: =SUM(45000) -> 45000 | K6: €/anno
D7: costi per gestione reflui: separazione e stoccaggio | J7: 30000 | K7: €/anno
D8: interessi bancari 6/7 % | J8: 55000 | K8: €/anno
D9: Costi materia prima: insilati | J9: =SUM(750*55+350*50) -> 58750 | K9: €/anno
D10: Costo consumi elettrici ausiliari | J10: 800 | K10: €/anno
D11: Costo polizza assicurativa | J11: 5500 | K11: €/anno
D12: Costi gestione servizio vendita energia, CV e/o amministrativi [26]: | J12: 1200 | K12: €/anno
D13: Costo personale/manodopera | J13: 58000 | K13: €/anno
D14: Importo e tipologia di finanziamento [27]: decreto MIPAF 30% in conto capitale | J14: =SUM(350000) -> 350000 | K14: €
D15: Tempo di rientro dell'investimento | J15: =SUM((J3-J14)/(540000-(J5+J6+J7+J8+J9+J10+J11+J12+J13))) -> 3.731513083 | K15: anni
A17: QUADRO NORMATIVO | D17: Descrizione
D18: Autorizzazioni ottenute per costruire ed avviare l'impianto [28]: | J18: Permesso a costruire rilasciato dal comune di competenza; Certificazione IARFF e convenzione rilasciata dal GSE
D21: Autorizzazioni ottenute per l'impiego di sottoprodotti/rifiuti
A24: [25] Inserire il dettaglio delle principali voci di costo per l'esercizio dell'impianto.
A25: [26] Indicare i costi per i servizi di consulenza offerti da società specializzate per i servizi amministrativi (GSE, AEEG, AE, ecc.).
A26: [27] Specificare la natura del contributo pubblico
A27: [28]Breve descrizione dei processi burocratici più importanti.

Sheet pag. 7
A2: NOTE TECNICHE PIANO DI MONITORAGGIO | D2: Descrizione [29]
D3: MONITORAGGI GIORNALIERI: - controllo produzioni conferimento al GSE; - qualità biogas prodotto: CH4, H2S, O2 ed CO2; - temperature digestori; MONITORAGGIO SETTIMANALI: - controllo olio e carboni attivi; - analisi con laboratorio da campo presente in azienda del digestato nelle vasche: PH, F/T, FOS e TAC
A10: PROGRAMMA DI DIVULGAZIONE | D10: Descrizione [30]
D11: - Abbiamo dato disponibilità di visita guidata all'Istituto Profesionale Tecnico (ind. Agrario) di Cosenza; - L'impianto è stato oggetto d'interesse del dipartimento di chimica dell'Università della Calabria. Hanno valutato l'opportunità di eseguire studi sulle rese delle matrici, ma al momento non hanno fondi a disposizione per tale ricerca. - E' stato visitato da vari titolari di aziende agricole (soci della Cooperativa ASSOLAC, dove viene confereti l'intera produzione di latte) interessati a vederne il funzionamento per valutare l'opportunità di realizzarlo presso la loro azienda;
A18: [29] Dettagliare il piano di monitoraggio attivato conformemente a quanto presentato con la domanda di finanziamento. Descrivere le azioni e attività svolte, con una breve descrizione dei risultati ottenuti. In caso di modifiche ed adeguamenti del PIANO DI MONITORAGGIO motivare con una nota tecnica descrittiva (da allegare) le ragioni
A21: [30] Dettagliare il piano di divulgazione. Allegare una relazione tecnica descrittiva delle attività e risultati ottenuti utilizzando il FORMAT PER LE VISITE allegato.
